fUST/lending_fUST_20240208
["ID","MTS","AMOUNT","RATE_DAILY","PERIOD"]
[313414170,1707329439052,-500.0,0.00028219,3]
[313414171,1707329439061,-500.0,0.00028219,3]
[313414172,1707329439074,-782.28,0.00028219,3]
[313414173,1707329439083,-151.0,0.00028219,2]
[313414174,1707329439092,-500.0,0.00028219,2]
[313414175,1707329439101,-151.0,0.00028219,2]
[313414177,1707329439110,-151.0,0.00028219,2]
[313414178,1707329439119,-500.0,0.00028219,3]
[313414179,1707329439128,-500.0,0.00028219,3]
[313414180,1707329439137,-423.28377858,0.00028219,2]
[313414181,1707329439147,-1135.59,0.00028219,3]
[313414182,1707329439156,-500.0,0.00028219,3]
[313414183,1707329439165,-151.0,0.00028219,2]
[313414184,1707329439174,-500.0,0.00028219,3]
[313414185,1707329439184,-1490.92,0.00028219,3]
[313414186,1707329439193,-151.0,0.00028219,2]
[313414187,1707329439202,-500.0,0.00028219,3]
[313414188,1707329439211,-500.0,0.00028219,3]
[313414189,1707329439220,-500.0,0.00028219,3]
[313414190,1707329439229,-842.69,0.00028219,3]
[313414191,1707329439238,-500.0,0.00028219,3]
[313414192,1707329439247,-2823.13,0.00028219,3]
[313414193,1707329439256,-2355.64,0.00028219,3]
[313414194,1707329439265,-596.36,0.00028219,3]
[313414195,1707329439274,-8438.94,0.00028219,3]
[313414196,1707329439283,-500.0,0.00028219,3]
[313414197,1707329439293,-500.0,0.00028219,3]
[313414198,1707329439302,-1085.03,0.00028219,3]
[313414199,1707329439311,-1375.15,0.00028219,3]
[313414200,1707329439322,-500.0,0.00028219,3]
[313414201,1707329439331,-2248.86,0.00028219,3]
[313414202,1707329439342,-581.62,0.00028219,3]
[313414203,1707329439350,-500.0,0.00028219,3]
[313414204,1707329439361,-1287.68,0.00028219,3]
[313414205,1707329439370,-500.0,0.00028219,3]
[313414206,1707329439379,-500.0,0.00028219,3]
[313414207,1707329439388,-4311.51,0.00028219,3]
[313414208,1707329439397,-500.0,0.00028219,3]
[313414209,1707329439406,-971.12,0.00028219,3]
[313414210,1707329439415,-500.0,0.00028493,3]
[313414211,1707329439424,-1464.42412447,0.00028493,2]
[313414212,1707329439433,-1464.42412447,0.00028493,2]
[313414213,1707329439443,-1464.42412447,0.00028493,2]
[313414214,1707329439452,-1464.42412447,0.00028493,2]
[313414215,1707329439461,-1464.42412447,0.00028493,2]
[313414216,1707329439471,-1464.42412447,0.00028493,2]
[313414217,1707329439481,-1464.42412447,0.00028493,2]
[313414218,1707329439490,-1464.42412447,0.00028493,2]
[313414219,1707329439499,-1464.42412447,0.00028493,2]
[313414220,1707329439508,-1464.42412447,0.00028493,2]
[313414221,1707329439517,-782.28,0.00028493,3]
[313414222,1707329439526,-500.0,0.00028493,2]
[313414223,1707329439536,-500.0,0.00028493,3]
[313414224,1707329439546,-500.0,0.00028493,3]
[313414225,1707329439555,-1135.59,0.00028493,3]
[313414226,1707329439566,-500.0,0.00028493,3]
[313414227,1707329439575,-500.0,0.00028493,3]
[313414228,1707329439584,-1490.92,0.00028493,3]
[313414229,1707329439594,-500.0,0.00028493,3]
[313414230,1707329439603,-500.0,0.00028493,3]
[313414231,1707329439613,-500.0,0.00028493,3]
[313414232,1707329439622,-842.69,0.00028493,3]
[313414233,1707329439631,-500.0,0.00028493,3]
[313414234,1707329439641,-2823.13,0.00028493,3]
[313414235,1707329439650,-2355.64,0.00028493,3]
[313414236,1707329439659,-596.36,0.00028493,3]
[313414237,1707329439668,-8438.94,0.00028493,3]
[313414238,1707329439677,-500.0,0.00028493,3]
[313414239,1707329439687,-500.0,0.00028493,3]
[313414240,1707329439696,-1085.03,0.00028493,3]
[313414242,1707329439705,-1375.15,0.00028493,3]
[313414243,1707329439714,-2248.86,0.00028493,3]
[313414245,1707329439723,-581.62,0.00028493,3]
[313414246,1707329439732,-500.0,0.00028493,3]
[313414247,1707329439742,-1287.68,0.00028493,3]
[313414248,1707329439751,-500.0,0.00028493,3]
[313414249,1707329439760,-500.0,0.00028493,3]
[313414250,1707329439769,-4311.51,0.00028493,3]
[313414252,1707329439779,-500.0,0.00028493,3]
[313414254,1707329439788,-971.12,0.00028493,3]
[313414255,1707329439797,-153.0,0.00028493,2]
[313414256,1707329439807,-153.0,0.00028493,2]
[313414257,1707329439818,-396.8459932,0.00028493,2]
[313414258,1707329439827,-365.433075,0.00028493,2]
[313414259,1707329439836,-157.5348743,0.00028493,2]
[313414260,1707329439846,-330.9567163,0.00028493,2]
[313414261,1707329439856,-153.873444,0.00028493,2]
[313414262,1707329439865,-153.0,0.00028493,2]
[313414263,1707329439875,-154.000139,0.00028493,2]
[313414264,1707329439884,-306.542544,0.00028493,2]
[313414265,1707329439893,-153.0,0.00028493,2]
[313414266,1707329439902,-199.9099361,0.00028493,2]
[313414267,1707329439912,-153.0,0.00028493,2]
[313414268,1707329439921,-199.9099361,0.00028493,2]
[313414269,1707329439930,-153.0,0.00028493,2]
[313414270,1707329439939,-199.9099361,0.00028493,2]
[313414271,1707329439948,-153.0,0.00028493,2]
[313414272,1707329439957,-153.0,0.00028493,2]
[313414273,1707329439967,-153.0,0.00028493,2]
[313414274,1707329439979,-199.9099361,0.00028493,2]
[313414275,1707329439988,-153.0,0.00028493,2]
[313414276,1707329439997,-197.2351802,0.00028493,2]
[313414277,1707329440007,-153.0,0.00028493,2]
[313414278,1707329440017,-199.9099361,0.00028493,2]
[313414279,1707329440027,-153.0,0.00028493,2]
[313414280,1707329440036,-199.9099361,0.00028493,2]
[313414281,1707329440048,-153.0,0.00028493,2]
[313414282,1707329440057,-153.0,0.00028493,2]
[313414283,1707329440068,-199.9099361,0.00028493,2]
[313414284,1707329440078,-199.9099361,0.00028493,2]
[313414285,1707329440087,-199.9099361,0.00028493,2]
[313414286,1707329440097,-306.0,0.00028493,2]
[313414287,1707329440106,-199.9099361,0.00028493,2]
[313414288,1707329440115,-207.1920195,0.00028493,2]
[313414289,1707329440125,-153.0,0.00028493,2]
[313414290,1707329440134,-199.9099361,0.00028493,2]
[313414291,1707329440144,-199.9099361,0.00028493,2]
[313414292,1707329440153,-153.0,0.00028493,2]
[313414293,1707329440164,-199.9099361,0.00028493,2]
[313414294,1707329440173,-153.0,0.00028493,2]
[313414295,1707329440182,-712.69068036,0.000285,2]
[313414296,1707329440191,-155.07748887,0.00028566,2]
[313414297,1707329440200,-500.0,0.00028767,3]
[313414298,1707329440209,-782.28,0.00028767,3]
[313414299,1707329440218,-151.0,0.00028767,2]
[313414300,1707329440228,-500.0,0.00028767,2]
[313414301,1707329440237,-500.0,0.00028767,3]
[313414302,1707329440246,-500.0,0.00028767,3]
[313414303,1707329440255,-1135.59,0.00028767,3]
[313414305,1707329440265,-500.0,0.00028767,3]
[313414306,1707329440274,-500.0,0.00028767,3]
[313414307,1707329440283,-1490.92,0.00028767,3]
[313414308,1707329440293,-500.0,0.00028767,3]
[313414309,1707329440302,-500.0,0.00028767,3]
[313414310,1707329440311,-842.69,0.00028767,3]
[313414312,1707329440322,-500.0,0.00028767,3]
[313414313,1707329440332,-2823.13,0.00028767,3]
[313414314,1707329440340,-2355.64,0.00028767,3]
[313414315,1707329440350,-596.36,0.00028767,3]
[313414316,1707329440359,-8438.94,0.00028767,3]
[313414317,1707329440368,-500.0,0.00028767,3]
[313414318,1707329440377,-500.0,0.00028767,3]
[313414319,1707329440386,-1085.03,0.00028767,3]
[313414320,1707329440395,-1375.15,0.00028767,3]
[313414321,1707329440404,-2248.86,0.00028767,3]
[313414322,1707329440413,-581.62,0.00028767,3]
[313414323,1707329440422,-500.0,0.00028767,3]
[313414324,1707329440432,-1287.68,0.00028767,3]
[313414325,1707329440440,-500.0,0.00028767,3]
[313414326,1707329440450,-500.0,0.00028767,3]
[313414327,1707329440459,-4311.51,0.00028767,3]
[313414328,1707329440468,-500.0,0.00028767,3]
[313414329,1707329440477,-2000.0,0.00028868,2]
[313414330,1707329440486,-2000.0,0.00028868,2]
[313414331,1707329440495,-459.60686937,0.00029,3]
[313414332,1707329440504,-178.20188501,0.00029,2]
[313414333,1707329440513,-183.31759979,0.00029,10]
[313414334,1707329440523,-56306.24439266,0.00029,2]
[313414335,1707329440532,-151.0,0.00029,2]
[313414336,1707329440542,-500.0,0.00029,2]
[313414337,1707329440551,-2000.0,0.00029,2]
[313414338,1707329440560,-151.0,0.00029,2]
[313414339,1707329440570,-151.0,0.00029,2]
[313414340,1707329440579,-155.0,0.00029,2]
[313414341,1707329440588,-151.0,0.00029,2]
[313414342,1707329440597,-151.0,0.00029,2]
[313414343,1707329440607,-1334.0,0.00029,4]
[313414344,1707329440616,-2000.0,0.0002901,2]
[313414345,1707329440625,-2000.0,0.0002902,2]
[313414346,1707329440634,-2000.0,0.0002903,2]
[313414347,1707329440643,-155.43781289,0.00029038,2]
[313414348,1707329440652,-360.60507902,0.00029038,2]
[313414349,1707329440661,-200.99449137,0.00029038,2]
[313414350,1707329440671,-155.01860223,0.00029038,2]
[313414351,1707329440680,-1583.44473922,0.00029038,2]
[313414352,1707329440689,-156.03742073,0.00029038,2]
[313414353,1707329440698,-639.85213328,0.00029038,2]
[313414354,1707329440708,-155.67700042,0.00029039,2]
[313414355,1707329440717,-3850.0,0.0002904,2]
[313414356,1707329440726,-500.0,0.00029041,3]
[313414357,1707329440735,-782.28,0.00029041,3]
[313414358,1707329440744,-500.0,0.00029041,2]
[313414359,1707329440754,-500.0,0.00029041,3]
[313414360,1707329440763,-500.0,0.00029041,3]
[313414361,1707329440772,-1135.59,0.00029041,3]
[313414362,1707329440781,-500.0,0.00029041,3]
[313414363,1707329440791,-500.0,0.00029041,3]
[313414364,1707329440800,-1490.92,0.00029041,3]
[313414365,1707329440809,-500.0,0.00029041,3]
[313414366,1707329440819,-500.0,0.00029041,3]
[313414367,1707329440828,-842.69,0.00029041,3]
[313414368,1707329440838,-500.0,0.00029041,3]
[313414369,1707329440847,-2823.13,0.00029041,3]
[313414370,1707329440856,-2355.64,0.00029041,3]
[313414371,1707329440865,-596.36,0.00029041,3]
[313414372,1707329440874,-8438.94,0.00029041,3]
[313414373,1707329440883,-500.0,0.00029041,3]
[313414374,1707329440892,-500.0,0.00029041,3]
[313414375,1707329440901,-1085.03,0.00029041,3]
[313414376,1707329440911,-1375.15,0.00029041,3]
[313414377,1707329440920,-2248.86,0.00029041,3]
[313414378,1707329440930,-581.62,0.00029041,3]
[313414379,1707329440939,-1287.68,0.00029041,3]
[313414380,1707329440948,-500.0,0.00029041,3]
[313414381,1707329440958,-500.0,0.00029041,3]
[313414382,1707329440971,-4311.51,0.00029041,3]
[313414383,1707329440980,-500.0,0.00029041,3]
[313414384,1707329440990,-153.9082875,0.00029041,2]
[313414385,1707329440999,-153.0,0.00029041,2]
[313414386,1707329441009,-153.0,0.00029041,2]
[313414387,1707329441018,-200.0,0.00029218,15]
[313414388,1707329441027,-348.0,0.00029218,15]
[313414389,1707329441036,-500.0,0.00029315,3]
[313414390,1707329441047,-782.28,0.00029315,3]
[313414391,1707329441056,-245.0,0.00029315,2]
[313414392,1707329441066,-451.71313205,0.00029315,2]
[313414393,1707329441076,-500.0,0.00029315,3]
[313414394,1707329441085,-500.0,0.00029315,3]
[313414395,1707329441094,-1135.59,0.00029315,3]
[313414396,1707329441103,-500.0,0.00029315,3]
[313414397,1707329441112,-594.08902643,0.00029315,3]
[313414398,1707329441123,-1490.92,0.00029315,3]
[313414399,1707329441131,-500.0,0.00029315,3]
[313414400,1707329441218,-500.0,0.00029315,3]
[313414401,1707329441228,-842.69,0.00029315,3]
[313414402,1707329441240,-500.0,0.00029315,3]
[313414403,1707329441249,-2823.13,0.00029315,3]
[313414404,1707329441259,-2355.64,0.00029315,3]
[313414405,1707329441268,-596.36,0.00029315,3]
[313414406,1707329441277,-8438.94,0.00029315,3]
[313414407,1707329441287,-500.0,0.00029315,3]
[313414408,1707329441296,-500.0,0.00029315,3]
[313414409,1707329441305,-1085.03,0.00029315,3]
[313414410,1707329441314,-1375.15,0.00029315,3]
[313414411,1707329441324,-2248.86,0.00029315,3]
[313414412,1707329441333,-581.62,0.00029315,3]
[313414413,1707329441343,-211.402659,0.00029315,2]
[313414414,1707329441352,-211.402659,0.00029315,2]
[313414415,1707329441361,-1287.68,0.00029315,3]
[313414416,1707329441370,-500.0,0.00029315,3]
[313414417,1707329441379,-500.0,0.00029315,3]
[313414419,1707329441388,-4311.51,0.00029315,3]
[313414420,1707329441397,-500.0,0.00029315,3]
[313414422,1707329441406,-1025.98354362,0.000295,2]
[313414424,1707329441415,-500.0,0.00029589,3]
[313414425,1707329441425,-782.28,0.00029589,3]
[313414426,1707329441434,-500.0,0.00029589,3]
[313414428,1707329441443,-500.0,0.00029589,3]
[313414429,1707329441451,-1135.59,0.00029589,3]
[313414430,1707329441461,-500.0,0.00029589,3]
[313414431,1707329441472,-1490.92,0.00029589,3]
[313414432,1707329441481,-500.0,0.00029589,3]
[313414433,1707329441491,-500.0,0.00029589,3]
[313414434,1707329441500,-842.69,0.00029589,3]
[313414435,1707329441509,-500.0,0.00029589,3]
[313414436,1707329441518,-2823.13,0.00029589,3]
[313414437,1707329441527,-2355.64,0.00029589,3]
[313414438,1707329441536,-596.36,0.00029589,3]
[313414439,1707329441545,-8438.94,0.00029589,3]
[313414441,1707329441554,-500.0,0.00029589,3]
[313414443,1707329441563,-500.0,0.00029589,3]
[313414445,1707329441573,-1085.03,0.00029589,3]
[313414447,1707329441582,-1375.15,0.00029589,3]
[313414449,1707329441591,-2248.86,0.00029589,3]
[313414450,1707329441600,-581.62,0.00029589,3]
[313414451,1707329441608,-1287.68,0.00029589,3]
[313414452,1707329441617,-500.0,0.00029589,3]
[313414453,1707329441628,-500.0,0.00029589,3]
[313414454,1707329441637,-4311.51,0.00029589,3]
[313414455,1707329441646,-500.0,0.00029589,3]
[313414456,1707329441655,-234.50540135,0.00029766,2]
[313414457,1707329441664,-5000.0,0.00029862,5]
[313414458,1707329441674,-500.0,0.00029863,3]
[313414459,1707329441683,-782.28,0.00029863,3]
[313414460,1707329441692,-151.0,0.00029863,2]
[313414461,1707329441701,-151.0,0.00029863,2]
[313414462,1707329441710,-500.0,0.00029863,3]
[313414463,1707329441719,-500.0,0.00029863,3]
[313414464,1707329441729,-1135.59,0.00029863,3]
[313414465,1707329441738,-500.0,0.00029863,3]
[313414466,1707329441747,-151.0,0.00029863,2]
[313414467,1707329441757,-1490.92,0.00029863,3]
[313414468,1707329441774,-151.0,0.00029863,2]
[313414470,1707329441783,-500.0,0.00029863,3]
[313414472,1707329441792,-500.0,0.00029863,3]
[313414474,1707329441801,-842.69,0.00029863,3]
[313414476,1707329441810,-500.0,0.00029863,3]
[313414478,1707329441820,-2823.13,0.00029863,3]
[313414480,1707329441829,-2355.64,0.00029863,3]
[313414482,1707329441838,-596.36,0.00029863,3]
[313414484,1707329441847,-8438.94,0.00029863,3]
[313414486,1707329441856,-500.0,0.00029863,3]
[313414488,1707329441866,-500.0,0.00029863,3]
[313414490,1707329441874,-1085.03,0.00029863,3]
[313414492,1707329441883,-1375.15,0.00029863,3]
[313414494,1707329441892,-2248.86,0.00029863,3]
[313414495,1707329441901,-581.62,0.00029863,3]
[313414497,1707329441910,-1287.68,0.00029863,3]
[313414499,1707329441920,-500.0,0.00029863,3]
[313414502,1707329441931,-500.0,0.00029863,3]
[313414504,1707329441940,-1666.85595152,0.00029863,3]
[313414506,1707329441954,-419.90951034,0.00029863,3]
[313414651,1707329443258,-500.0,0.00027397,3]
[313414653,1707329443268,-500.0,0.00027671,3]
[313414655,1707329443277,-500.0,0.00027945,3]
[313414657,1707329443286,-1258.83,0.00028219,3]
[313414659,1707329443295,-201.40977833,0.00028219,3]
[313414890,1707329446331,-500.0,0.00027396,2]
[313414894,1707329446340,-500.0,0.00027396,2]
[313414898,1707329446350,-508.90357242,0.00027396,2]
[313414900,1707329446358,-500.0,0.00027396,2]
[313414903,1707329446367,-225.0,0.00027396,2]
[313414904,1707329446377,-500.0,0.00027396,2]
[313414907,1707329446385,-350.52745644,0.00027396,2]
[313414909,1707329446395,-500.0,0.00027396,2]
[313414911,1707329446404,-631.97882244,0.00027396,2]
[313414913,1707329446413,-435.19,0.00027396,2]
[313414915,1707329446422,-289.85922776,0.00027396,2]
[313414917,1707329446431,-500.0,0.00027396,2]
[313414918,1707329446439,-426.55881788,0.00027396,2]
[313414919,1707329446448,-154.95351395,0.00027396,4]
[313414921,1707329446458,-155.02170304,0.00027396,2]
[313414923,1707329446468,-298.59022167,0.00028219,3]
[313414925,1707329446477,-238.31367858,0.00028492,2]
[313419194,1707330235828,304.424875,0.00018974,2]
[313419195,1707330406870,14437.47513904,0.00018468,2]
[313419196,1707330406899,10462.52486096,0.00018468,2]
[313419197,1707330438094,-3076.63,0.00019458,3]
[313419198,1707330438114,-155.00620025,0.00019462,2]
[313419199,1707330438134,-155.00620025,0.00019462,2]
[313419200,1707330438156,-352.18460138,0.00019462,2]
[313419201,1707330438177,-161.4945607,0.00019463,2]
[313419202,1707330438197,-243.81886523,0.00019464,2]
[313419203,1707330438217,-154.98450155,0.00019465,2]
[313419204,1707330438237,-919.76074123,0.00019465,2]
[313420420,1707330495007,979.94865421,0.00017515,2]
[313422299,1707330547134,3557.52648483,0.00017515,2]
[313422301,1707330547162,25000.0,0.00017515,2]
[313422303,1707330547191,25000.0,0.00017515,2]
[313422305,1707330547218,25000.0,0.00017515,2]
[313422306,1707330547245,25000.0,0.00017515,2]
[313422308,1707330547271,62941.7169049,0.00017515,2]
[313422424,1707330551202,-590.02632581,0.00018966,2]
[313422425,1707330551222,-1297.15038027,0.00018967,2]
[313422426,1707330551243,-83922.89279015,0.00018967,2]
[313422427,1707330551264,-763.3743027,0.00018968,2]
[313422428,1707330551284,-1274.40857207,0.00018968,2]
[313422429,1707330551307,-18955.04769253,0.00018968,2]
[313422430,1707330551328,-906.16625216,0.00018969,2]
[313422431,1707330551351,-243.81886523,0.00018969,2]
[313422432,1707330551371,-1946.99903392,0.00018969,2]
[313422433,1707330551394,-352.18460138,0.0001897,2]
[313422434,1707330551414,-4179.85662615,0.0001897,2]
[313422436,1707330551433,-155.07748887,0.0001897,2]
[313422438,1707330551454,-718.01783563,0.00018971,2]
[313422440,1707330551475,-5852.91245033,0.00018971,2]
[313422441,1707330551496,-5223.83358614,0.00018971,2]
[313422443,1707330551516,-294.51312657,0.00018972,2]
[313422445,1707330551536,-1859.71951506,0.00018972,2]
[313422447,1707330551557,-155.00310006,0.00018972,3]
[313422448,1707330551576,-20929.45735728,0.00018972,2]
[313422450,1707330551601,-897.78834,0.00018974,2]
[313422452,1707330551622,-168.978433,0.00019178,2]
[313422454,1707330551642,-4507.59,0.00019451,3]
[313422455,1707330551661,-155.03255684,0.0001946,2]
[313422457,1707330551680,-307.31318331,0.00019461,2]
[313422459,1707330551701,-370.69449192,0.00019461,2]
[313422461,1707330551720,-287.87736975,0.00019461,2]
[313422462,1707330551739,-155.01860223,0.00019461,2]
[313422464,1707330551758,-330.23570657,0.00019461,2]
[313422466,1707330551779,-4300.3,0.00019461,2]
[313422467,1707330551798,-298.59040419,0.00019462,2]
[313422469,1707330551819,-1030.91753689,0.00019462,2]
[313422578,1707330555162,-295.73444606,0.00018966,2]
[313422579,1707330555184,-36003.28152861,0.00019462,2]
[313422580,1707330555206,-263.87768192,0.00019466,2]
[313422581,1707330555227,-195.44394166,0.00019466,2]
[313422582,1707330555247,-155.46358918,0.00019466,2]
[313422583,1707330555267,-298.69472489,0.00019467,2]
[313422584,1707330555286,-1583.8500325,0.00019474,2]
[313422585,1707330555308,-164.82035218,0.0002023,2]
[313422586,1707330555327,-2300.0,0.00020336,2]
[313422587,1707330555348,-168.657807,0.00021345,2]
[313422588,1707330555369,-200.0,0.00021402,7]
[313422589,1707330555391,-166.666666,0.00021918,2]
[313422590,1707330555411,-3980.62518534,0.00022,2]
[313422591,1707330555431,-166.666666,0.00022431,2]
[313422592,1707330555451,-400.05518616,0.0002263,2]
[313422593,1707330564125,-240.218605,0.0001897,2]
[313422594,1707330564168,-1869.4432372,0.0001897,2]
[313422595,1707330564188,-1201.66555398,0.0002,2]
[313422596,1707330564207,-166.666666,0.00021918,2]
[313422597,1707330564230,-166.666666,0.00022431,2]
[313422598,1707330564250,-1867.01205538,0.0002263,2]
[313422599,1707330564270,-201.78710056,0.0002263,2]
[313422600,1707330564290,-206.45491755,0.0002263,2]
[313422601,1707330564312,-180.7763201,0.0002263,2]
[313422602,1707330564331,-170.29285902,0.0002263,2]
[313422603,1707330564355,-166.666666,0.00022944,2]
[313422604,1707330564373,-9967.3761107,0.00023,2]
[313422605,1707330564394,-166.666666,0.00023456,2]
[313422606,1707330564416,-280.0,0.00023542,7]
[313422607,1707330564436,-155.27339162,0.00023631,2]
[313422608,1707330564455,-500.0,0.00023632,2]
[313422609,1707330564477,-500.0,0.00023632,2]
[313422610,1707330564497,-500.0,0.00023632,2]
[313422611,1707330564519,-500.0,0.00023632,2]
[313422612,1707330564538,-598.51905898,0.00023632,2]
[313422613,1707330564557,-500.0,0.00023632,2]
[313422614,1707330564576,-500.0,0.00023632,2]
[313422615,1707330564596,-500.0,0.00023632,2]
[313422616,1707330564615,-250.0,0.00023632,2]
[313422617,1707330564634,-500.0,0.00023632,2]
[313422618,1707330564655,-500.0,0.00023632,2]
[313422619,1707330564676,-500.0,0.00023632,2]
[313422620,1707330564696,-500.0,0.00023632,2]
[313422621,1707330564715,-500.0,0.00023632,2]
[313422622,1707330564735,-543.30438283,0.00023632,2]
[313422623,1707330564755,-500.0,0.00023632,2]
[313422624,1707330564775,-500.0,0.00023632,2]
[313422625,1707330564795,-500.0,0.00023632,2]
[313422626,1707330564815,-500.0,0.00023632,2]
[313422627,1707330564836,-500.0,0.00023632,2]
[313422628,1707330564857,-401.98908129,0.00023632,2]
[313422629,1707330564876,-474.29,0.00023632,2]
[313422630,1707330564896,-500.0,0.00023632,2]
[313422631,1707330564917,-500.0,0.00023632,2]
[313422632,1707330564937,-500.0,0.00023632,2]
[313422633,1707330564957,-500.0,0.00023632,2]
[313422634,1707330564977,-500.0,0.00023632,2]
[313422635,1707330564998,-492.37212565,0.00023632,2]
[313422636,1707330565020,-500.0,0.00023632,2]
[313422637,1707330565040,-500.0,0.00023632,2]
[313422638,1707330565059,-500.0,0.00023632,2]
[313422639,1707330565080,-500.0,0.00023632,2]
[313422640,1707330565099,-500.0,0.00023632,2]
[313422641,1707330565119,-500.0,0.00023632,2]
[313422642,1707330565140,-500.0,0.00023632,2]
[313422643,1707330565160,-173.64748994,0.00023632,2]
[313422644,1707330565180,-316.29937535,0.00023632,2]
[313422645,1707330565200,-191.96332627,0.00023632,2]
[313422646,1707330565220,-500.0,0.00023632,2]
[313422647,1707330565240,-500.0,0.00023632,2]
[313422648,1707330565261,-231.22058785,0.00023632,2]
[313422649,1707330565280,-500.0,0.00023632,2]
[313422650,1707330565301,-373.40151051,0.00023632,2]
[313422651,1707330565324,-500.0,0.00023632,2]
[313422652,1707330565346,-500.0,0.00023632,2]
[313422653,1707330565368,-500.0,0.00023632,2]
[313422654,1707330565388,-433.50361812,0.00023632,2]
[313422655,1707330565409,-571.20254843,0.00023632,2]
[313422656,1707330565428,-20000.0,0.00023632,2]
[313422657,1707330565448,-19910.76123758,0.00023633,2]
[313422658,1707330565469,-523.37302151,0.00023634,2]
[313422659,1707330565489,-166.666666,0.00023969,2]
[313422660,1707330565509,-4039.14093432,0.00024,2]
[313422661,1707330565529,-166.666666,0.00024482,2]
[313422662,1707330565551,-195.40325617,0.00024543,2]
[313422663,1707330565657,-155.01860223,0.00024636,2]
[313422664,1707330565677,-200.99449137,0.00024636,2]
[313422665,1707330565697,-156.03742073,0.00024636,2]
[313422666,1707330565718,-155.67700042,0.00024636,2]
[313422667,1707330565737,-155.43781289,0.00024636,2]
[313422668,1707330565757,-639.85213328,0.00024636,2]
[313422669,1707330565778,-272.05455737,0.00024644,2]
[313422670,1707330565798,-300.0,0.00024644,2]
[313422671,1707330565818,-3209.73838557,0.00024644,2]
[313423166,1707330632419,-764.39320166,0.0002248,5]
[313423167,1707330632429,-155.0,0.0002248,4]
[313423168,1707330632439,-1831.43958099,0.00023632,2]
[313423169,1707330632448,-20929.45735728,0.00023997,2]
[313423170,1707330632457,-18955.04769253,0.00023998,2]
[313423171,1707330632466,-1903.08918521,0.00023999,2]
[313423172,1707330632475,-41.43748475,0.00024644,2]
[313423175,1707330632484,-2356.96,0.00024967,3]
[313423178,1707330632494,-2173.8,0.00024969,3]
[313423179,1707330632503,-3394.03,0.00024969,3]
[313423181,1707330632512,-2828.35,0.00024969,3]
[313423183,1707330632521,-3980.62518534,0.00024977,2]
[313423185,1707330632531,-2109.6618422,0.00024977,2]
[313423187,1707330632541,-464.59107991,0.00024977,2]
[313423189,1707330632549,-902.09419003,0.00024977,2]
[313423191,1707330632559,-983.48024134,0.00024978,2]
[313423193,1707330632568,-162.10102304,0.00024978,2]
[313423195,1707330632577,-5838.13733152,0.00024978,2]
[313423197,1707330632586,-4179.85662615,0.00024978,2]
[313423199,1707330632596,-296.2752204,0.00024978,2]
[313423201,1707330632605,-590.98343796,0.00024978,2]
[313423202,1707330632614,-3905.216018,0.00024978,2]
[313423204,1707330632623,-718.01783563,0.00024978,2]
[313423206,1707330632632,-1199.84133423,0.00024978,2]
[313423208,1707330632643,-1309.6921154,0.00024979,2]
[313423210,1707330632652,-375.44516874,0.00024979,2]
[313423213,1707330632662,-16689.37244508,0.00024979,2]
[313423214,1707330632672,-278.49081585,0.00024979,2]
[313423216,1707330632681,-17199.095869,0.0002498,2]
[313423218,1707330632690,-17199.095869,0.0002498,2]
[313423220,1707330632699,-6299.4069347,0.00025,2]
[313423222,1707330632708,-335.52992191,0.00025,2]
[313423223,1707330632717,-1583.44473922,0.00025,2]